fUST/lending_fUST_20240810
["ID","MTS","AMOUNT","RATE_DAILY","PERIOD"]
[334587443,1723283445918,-500.0,0.00020821,3]
[334587444,1723283445928,-751.48,0.00020821,3]
[334587445,1723283445937,-500.0,0.00020821,3]
[334587446,1723283445946,-503.52683655,0.00020821,3]
[334587447,1723283445955,-500.0,0.00020821,3]
[334587448,1723283445965,-505.01487079,0.00020821,3]
[334587449,1723283445974,-500.0,0.00020821,3]
[334587450,1723283445983,-504.25998553,0.00020821,3]
[334587451,1723283445993,-153.37210949,0.00020821,3]
[334587452,1723283446003,-500.0,0.00020821,3]
[334587453,1723283446014,-500.0,0.00020821,3]
[334587454,1723283446025,-671.88,0.00020821,3]
[334587455,1723283446035,-630.19,0.00020821,3]
[334587456,1723283446045,-503.40803061,0.00020821,3]
[334587457,1723283446056,-500.0,0.00020821,3]
[334587458,1723283446067,-500.0,0.00020821,3]
[334587459,1723283446076,-500.0,0.00020821,3]
[334587460,1723283446085,-688.42,0.00020821,3]
[334587461,1723283446094,-670.89,0.00020821,3]
[334587462,1723283446103,-587.01,0.00020821,3]
[334587463,1723283446112,-500.0,0.00020821,3]
[334587464,1723283446121,-500.0,0.00020821,3]
[334587465,1723283446130,-500.0,0.00020821,3]
[334587466,1723283446139,-500.0,0.00020821,3]
[334587467,1723283446149,-500.0,0.00020821,3]
[334587468,1723283446158,-500.0,0.00020821,3]
[334587469,1723283446168,-500.0,0.00020821,3]
[334587470,1723283446177,-500.0,0.00020821,3]
[334587471,1723283446187,-500.0,0.00020821,3]
[334587472,1723283446196,-500.0,0.00020821,3]
[334587473,1723283446205,-500.0,0.00020821,3]
[334587474,1723283446215,-500.0,0.00020821,3]
[334587475,1723283446225,-806.88,0.00020821,3]
[334587476,1723283446235,-500.0,0.00020821,3]
[334587477,1723283446245,-500.0,0.00020821,3]
[334587478,1723283446255,-500.0,0.00020821,3]
[334587479,1723283446266,-807.16,0.00020821,3]
[334587480,1723283446278,-500.0,0.00020821,3]
[334587481,1723283446288,-500.0,0.00020821,3]
[334587482,1723283446297,-500.0,0.00020821,3]
[334587483,1723283446307,-151.0,0.00020821,2]
[334587484,1723283446318,-500.0,0.00020821,3]
[334587485,1723283446328,-151.0,0.00020821,2]
[334587486,1723283446337,-182.522005,0.00020821,2]
[334587487,1723283446347,-507.47057637,0.00020821,3]
[334587488,1723283446359,-500.0,0.00020821,3]
[334587489,1723283446369,-501.66123053,0.00020821,3]
[334587490,1723283446378,-500.0,0.00020821,3]
[334587491,1723283446387,-500.0,0.00020821,3]
[334587492,1723283446397,-500.0,0.00020821,3]
[334587493,1723283446406,-500.0,0.00020821,3]
[334587494,1723283446415,-793.36,0.00020821,3]
[334587495,1723283446425,-500.0,0.00020821,3]
[334587496,1723283446434,-500.0,0.00020821,3]
[334587497,1723283446443,-500.0,0.00020821,3]
[334587498,1723283446452,-632.3,0.00020821,3]
[334587499,1723283446461,-500.0,0.00020821,3]
[334587500,1723283446470,-500.0,0.00020821,3]
[334587501,1723283446480,-507.84298305,0.00020821,3]
[334587502,1723283446492,-500.0,0.00020821,3]
[334587503,1723283446501,-502.09665698,0.00020821,3]
[334587504,1723283446511,-790.6,0.00020821,3]
[334587505,1723283446520,-503.68957715,0.00020821,3]
[334587506,1723283446530,-572.62,0.00020821,3]
[334587507,1723283446539,-743.14,0.00020821,3]
[334587509,1723283446549,-504.95043985,0.00020821,3]
[334587511,1723283446559,-500.0,0.00020821,3]
[334587512,1723283446568,-500.0,0.00020821,3]
[334587513,1723283446577,-500.0,0.00020821,3]
[334587514,1723283446587,-500.0,0.00020821,3]
[334587515,1723283446596,-506.59117029,0.00020821,3]
[334587516,1723283446605,-500.0,0.00020821,3]
[334587517,1723283446614,-500.0,0.00020821,3]
[334587518,1723283446623,-500.0,0.00020821,3]
[334587519,1723283446632,-505.04034879,0.00020821,3]
[334587520,1723283446642,-782.99,0.00020821,3]
[334587521,1723283446651,-500.0,0.00020821,3]
[334587522,1723283446661,-500.0,0.00020821,3]
[334587523,1723283446670,-310.67868325,0.00020821,3]
[334587524,1723283446680,-1186.71,0.00020821,3]
[334587525,1723283446689,-500.0,0.00020821,3]
[334587526,1723283446698,-962.38,0.00020821,3]
[334587527,1723283446708,-500.0,0.00020821,3]
[334587528,1723283446718,-500.0,0.00020821,3]
[334587529,1723283446727,-502.8818134,0.00020821,3]
[334587530,1723283446738,-500.0,0.00020821,3]
[334587531,1723283446747,-500.0,0.00020821,3]
[334587532,1723283446756,-500.0,0.00020821,3]
[334587533,1723283446765,-500.0,0.00020821,3]
[334587534,1723283446775,-500.0,0.00020821,3]
[334587535,1723283446783,-502.47891096,0.00020821,3]
[334587536,1723283446793,-500.0,0.00020821,3]
[334587537,1723283446802,-500.0,0.00020821,3]
[334587538,1723283446812,-500.0,0.00020821,3]
[334587539,1723283446821,-500.0,0.00020821,3]
[334587540,1723283446834,-536.2667604,0.00020821,3]
[334587541,1723283446843,-500.0,0.00020821,3]
[334587542,1723283446853,-505.43566481,0.00020821,3]
[334587543,1723283446862,-500.0,0.00020821,3]
[334587544,1723283446871,-500.0,0.00020821,3]
[334587545,1723283446880,-1052.4,0.00020821,3]
[334587546,1723283446889,-500.0,0.00020821,3]
[334587547,1723283447004,-786.45,0.00020821,3]
[334587548,1723283447026,-500.0,0.00020821,3]
[334587549,1723283447035,-500.0,0.00020821,3]
[334587550,1723283447045,-500.0,0.00020821,3]
[334587551,1723283447054,-500.0,0.00020821,3]
[334587552,1723283447063,-509.68731067,0.00020821,3]
[334587553,1723283447073,-500.0,0.00020821,3]
[334587554,1723283447082,-500.0,0.00020821,3]
[334587555,1723283447091,-500.0,0.00020821,3]
[334587556,1723283447101,-500.0,0.00020821,3]
[334587557,1723283447110,-500.0,0.00020821,3]
[334587558,1723283447119,-890.52,0.00020821,3]
[334587559,1723283447127,-500.0,0.00020821,3]
[334587560,1723283447139,-723.569815,0.00020821,2]
[334587561,1723283447150,-723.569815,0.00020821,2]
[334587562,1723283447161,-723.569815,0.00020821,2]
[334587563,1723283447170,-723.569815,0.00020821,2]
[334587564,1723283447181,-723.569815,0.00020821,2]
[334587565,1723283447191,-431.346872,0.00020821,2]
[334587566,1723283447200,-500.0,0.00020821,3]
[334587567,1723283447211,-723.569815,0.00020821,2]
[334587568,1723283447221,-431.346872,0.00020821,2]
[334587569,1723283447231,-431.346872,0.00020821,2]
[334587570,1723283447242,-731.34,0.00020821,3]
[334587571,1723283447252,-431.346872,0.00020821,2]
[334587572,1723283447261,-431.346872,0.00020821,2]
[334587573,1723283447271,-500.0,0.00020821,3]
[334587574,1723283447284,-1095.95,0.00020821,3]
[334587575,1723283447293,-431.346872,0.00020821,2]
[334587576,1723283447302,-502.81171245,0.00020821,3]
[334587577,1723283447312,-723.569815,0.00020821,2]
[334587578,1723283447323,-723.569815,0.00020821,2]
[334587579,1723283447332,-723.569815,0.00020821,2]
[334587580,1723283447342,-723.569815,0.00020821,2]
[334587581,1723283447352,-723.569815,0.00020821,2]
[334587582,1723283447361,-431.346872,0.00020821,2]
[334587583,1723283447371,-723.56981324,0.00020821,2]
[334587584,1723283447382,-431.346872,0.00020821,2]
[334587585,1723283447392,-500.0,0.00020821,3]
[334587586,1723283447401,-431.346872,0.00020821,2]
[334587587,1723283447410,-500.0,0.00020821,3]
[334587588,1723283447419,-431.346872,0.00020821,2]
[334587589,1723283447428,-500.0,0.00020821,3]
[334587590,1723283447437,-431.346872,0.00020821,2]
[334587591,1723283447446,-431.346875,0.00020821,2]
[334587592,1723283447455,-500.0,0.00020821,3]
[334587593,1723283447465,-500.0,0.00020821,3]
[334587594,1723283447474,-500.0,0.00020821,3]
[334587595,1723283447483,-500.0,0.00020821,3]
[334587596,1723283447499,-500.0,0.00020821,3]
[334587597,1723283447508,-500.0,0.00020821,3]
[334587598,1723283447517,-500.0,0.00020821,3]
[334587599,1723283447527,-505.59162293,0.00020821,3]
[334587600,1723283447537,-500.0,0.00020821,3]
[334587601,1723283447546,-500.0,0.00020821,3]
[334587602,1723283447556,-406.81594378,0.00020821,3]
[334587603,1723283447565,-527.758689,0.00020821,3]
[334587604,1723283447574,-500.0,0.00020821,3]
[334587605,1723283447583,-500.0,0.00020821,3]
[334587606,1723283447592,-500.0,0.00020821,3]
[334587607,1723283447602,-500.0,0.00020821,3]
[334587608,1723283447611,-500.0,0.00020821,3]
[334587609,1723283447620,-565.29734231,0.00020821,3]
[334587610,1723283447630,-500.0,0.00020821,3]
[334587611,1723283447639,-500.0,0.00020821,3]
[334587612,1723283447649,-196.75710832,0.00020821,3]
[334587613,1723283447658,-500.0,0.00020821,3]
[334587614,1723283447668,-505.25367923,0.00020821,3]
[334587615,1723283447679,-179.34503911,0.00020821,3]
[334587616,1723283447688,-648.97,0.00020821,3]
[334587617,1723283447698,-648.97,0.00020821,3]
[334587618,1723283447707,-500.0,0.00020821,3]
[334587619,1723283447718,-648.97,0.00020821,3]
[334587620,1723283447728,-648.97,0.00020821,3]
[334587621,1723283447738,-500.0,0.00020821,3]
[334587622,1723283447747,-648.97,0.00020821,3]
[334587623,1723283447757,-648.97,0.00020821,3]
[334587624,1723283447767,-648.97,0.00020821,3]
[334587625,1723283447776,-648.97,0.00020821,3]
[334587626,1723283447785,-648.97,0.00020821,3]
[334587627,1723283447795,-500.0,0.00020821,3]
[334587628,1723283447804,-648.97,0.00020821,3]
[334587629,1723283447814,-648.97,0.00020821,3]
[334587630,1723283447824,-648.97,0.00020821,3]
[334587631,1723283447835,-500.0,0.00020821,3]
[334587632,1723283447844,-506.74375151,0.00020821,3]
[334587633,1723283447854,-648.97,0.00020821,3]
[334587634,1723283447864,-219.30487628,0.00020821,3]
[334587635,1723283447882,-648.97,0.00020821,3]
[334587636,1723283447891,-648.97,0.00020821,3]
[334587637,1723283447901,-648.97,0.00020821,3]
[334587638,1723283447910,-648.97,0.00020821,3]
[334587639,1723283447920,-648.97,0.00020821,3]
[334587640,1723283447929,-648.97,0.00020821,3]
[334587641,1723283447940,-1171.570492,0.00020821,2]
[334587642,1723283447961,-648.97,0.00020821,3]
[334587643,1723283447973,-1873.34,0.00020821,3]
[334587644,1723283447984,-648.97,0.00020821,3]
[334587645,1723283447995,-1171.570492,0.00020821,2]
[334587646,1723283448005,-648.97,0.00020821,3]
[334587647,1723283448016,-1171.570492,0.00020821,2]
[334587648,1723283448026,-648.97,0.00020821,3]
[334587649,1723283448037,-1171.570492,0.00020821,2]
[334587650,1723283448048,-649.09954984,0.00020821,3]
[334587651,1723283448058,-1171.570492,0.00020821,2]
[334587652,1723283448068,-1171.570492,0.00020821,2]
[334587653,1723283448078,-1171.570492,0.00020821,2]
[334587654,1723283448088,-355.22870848,0.00020821,3]
[334587655,1723283448099,-1171.570492,0.00020821,2]
[334587656,1723283448108,-1171.570492,0.00020821,2]
[334587657,1723283448119,-1171.570492,0.00020821,2]
[334587658,1723283448129,-1171.570492,0.00020821,2]
[334587659,1723283448140,-1171.570501,0.00020821,2]
[334587660,1723283448150,-500.0,0.00020821,3]
[334587661,1723283448160,-505.29704672,0.00020821,3]
[334587662,1723283448171,-509.49445872,0.00020821,3]
[334587663,1723283448181,-500.0,0.00020821,3]
[334587664,1723283448191,-500.0,0.00020821,3]
[334587665,1723283448201,-699.7,0.00020821,3]
[334587666,1723283448211,-515.35381011,0.00020821,3]
[334587667,1723283448222,-509.15636668,0.00020821,3]
[334587668,1723283448232,-500.0,0.00020821,3]
[334587669,1723283448243,-500.0,0.00020821,3]
[334587670,1723283448254,-500.0,0.00020821,3]
[334587671,1723283448264,-500.0,0.00020821,3]
[334587672,1723283448276,-516.41732021,0.00020821,3]
[334587673,1723283448288,-500.0,0.00020821,3]
[334587674,1723283448298,-500.0,0.00020821,3]
[334587675,1723283448307,-500.0,0.00020821,3]
[334587676,1723283448319,-500.0,0.00020821,3]
[334587677,1723283448328,-500.0,0.00020821,3]
[334587678,1723283448339,-500.0,0.00020821,3]
[334587679,1723283448349,-500.0,0.00020821,3]
[334587680,1723283448361,-500.0,0.00020821,3]
[334587681,1723283448371,-500.0,0.00020821,3]
[334587682,1723283448383,-500.0,0.00020821,3]
[334587683,1723283448394,-500.0,0.00020821,3]
[334587684,1723283448404,-535.13407904,0.00020821,3]
[334587685,1723283448414,-500.0,0.00020821,3]
[334587686,1723283448425,-684.91,0.00020821,3]
[334587687,1723283448435,-500.0,0.00020821,3]
[334587688,1723283448448,-578.74,0.00020821,3]
[334587689,1723283448458,-578.74,0.00020821,3]
[334587690,1723283448470,-578.74,0.00020821,3]
[334587691,1723283448480,-578.74,0.00020821,3]
[334587692,1723283448493,-578.74,0.00020821,3]
[334587693,1723283448502,-578.74,0.00020821,3]
[334587694,1723283448512,-578.74,0.00020821,3]
[334587695,1723283448521,-578.74,0.00020821,3]
[334587696,1723283448531,-578.74,0.00020821,3]
[334587697,1723283448541,-578.74,0.00020821,3]
[334587698,1723283448550,-578.74,0.00020821,3]
[334587699,1723283448559,-578.74,0.00020821,3]
[334587700,1723283448569,-578.74,0.00020821,3]
[334587701,1723283448579,-578.74,0.00020821,3]
[334587702,1723283448589,-578.74,0.00020821,3]
[334587703,1723283448599,-500.0,0.00020821,3]
[334587704,1723283448608,-578.74,0.00020821,3]
[334587705,1723283448618,-578.74,0.00020821,3]
[334587706,1723283448628,-578.74,0.00020821,3]
[334587707,1723283448638,-578.74,0.00020821,3]
[334587708,1723283448649,-578.74,0.00020821,3]
[334587709,1723283448659,-578.74,0.00020821,3]
[334587710,1723283448669,-792.52,0.00020821,3]
[334587711,1723283448679,-578.74,0.00020821,3]
[334587712,1723283448689,-578.74,0.00020821,3]
[334587713,1723283448698,-500.0,0.00020821,3]
[334587714,1723283448708,-578.81769817,0.00020821,3]
[334587715,1723283448718,-500.0,0.00020821,3]
[334587716,1723283448728,-687.21,0.00020821,3]
[334587717,1723283448739,-1119.91,0.00020821,3]
[334587718,1723283448750,-503.64010005,0.00020821,3]
[334587719,1723283448761,-865.121341,0.00020821,2]
[334587720,1723283448772,-503.15555117,0.00020821,3]
[334587721,1723283448782,-1149.33,0.00020821,3]
[334587722,1723283448795,-865.121341,0.00020821,2]
[334587723,1723283448805,-865.121341,0.00020821,2]
[334587724,1723283448816,-865.121341,0.00020821,2]
[334587725,1723283448826,-500.0,0.00020821,3]
[334587726,1723283448836,-500.0,0.00020821,3]
[334587727,1723283448846,-865.121341,0.00020821,2]
[334587728,1723283448856,-865.121341,0.00020821,2]
[334587729,1723283448866,-500.0,0.00020821,3]
[334587730,1723283448881,-500.0,0.00020821,3]
[334587731,1723283448891,-865.121341,0.00020821,2]
[334587732,1723283448902,-865.121341,0.00020821,2]
[334587733,1723283448912,-209.27243334,0.00020821,3]
[334587734,1723283448922,-865.121341,0.00020821,2]
[334587735,1723283448932,-12787.93,0.00020821,3]
[334587736,1723283448941,-865.121341,0.00020821,2]
[334587737,1723283448951,-505.11462333,0.00020821,3]
[334587738,1723283448962,-12787.93,0.00020821,3]
[334587739,1723283448972,-865.121341,0.00020821,2]
[334587740,1723283448982,-12787.93,0.00020821,3]
[334587741,1723283448993,-865.121339,0.00020821,2]
[334587742,1723283449004,-12787.93,0.00020821,3]
[334587743,1723283449014,-500.0,0.00020821,3]
[334587744,1723283449024,-500.0,0.00020821,3]
[334587745,1723283449034,-12787.93,0.00020821,3]
[334587746,1723283449044,-12787.93,0.00020821,3]
[334587747,1723283449054,-12787.93,0.00020821,3]
[334587748,1723283449064,-12787.93,0.00020821,3]
[334587749,1723283449074,-12787.93,0.00020821,3]
[334587750,1723283449084,-201.40103009,0.00020821,3]
[334587751,1723283449094,-12787.93,0.00020821,3]
[334587752,1723283449104,-12787.93,0.00020821,3]
[334587753,1723283449114,-12787.93,0.00020821,3]
[334587754,1723283449124,-12787.93,0.00020821,3]
[334587755,1723283449134,-12787.93,0.00020821,3]
[334587756,1723283449144,-12787.93,0.00020821,3]
[334587757,1723283449154,-12787.93,0.00020821,3]
[334587758,1723283449164,-506.19776692,0.00020821,3]
[334587759,1723283449174,-12787.93,0.00020821,3]
[334587760,1723283449185,-12787.93,0.00020821,3]
[334587761,1723283449196,-583.08,0.00020821,3]
[334587762,1723283449206,-500.0,0.00020821,3]
[334587763,1723283449216,-12787.93,0.00020821,3]
[334587764,1723283449226,-12787.93,0.00020821,3]
[334587765,1723283449239,-12787.93,0.00020821,3]
[334587766,1723283449249,-12787.93,0.00020821,3]
[334587767,1723283449259,-967.94,0.00020821,3]
[334587768,1723283449272,-12787.93,0.00020821,3]
[334587769,1723283449283,-12787.95208425,0.00020821,3]
[334587770,1723283449293,-1754.68,0.00020821,3]
[334587771,1723283449303,-500.0,0.00020821,3]
[334587772,1723283449312,-510.84567934,0.00020821,3]
[334587773,1723283449322,-1626.06,0.00020821,3]
[334587774,1723283449332,-258.47874647,0.00020821,3]
[334587775,1723283449832,-11.85807791,0.00015751,2]
[334587776,1723283450093,-834.25536373,0.00015751,2]
[334587777,1723283450102,-404.944831,0.00019778,2]
[334587778,1723283450113,-404.944831,0.00019778,2]
[334587779,1723283450122,-404.944831,0.0001989,2]
[334587780,1723283450131,-404.944831,0.0001989,2]
[334587781,1723283450142,-404.944831,0.0002,2]
[334587782,1723283450152,-404.944831,0.0002,2]
[334587783,1723283450161,-404.944831,0.0002,2]
[334587784,1723283450171,-404.944831,0.0002,2]
[334587785,1723283450181,-241.52125353,0.00020821,3]
[334587786,1723283450191,-503.46925531,0.00020821,3]
[334587787,1723283450200,-204.4203946,0.00020821,3]
[334587788,1723283450216,-295.5796054,0.00020821,3]
[334587789,1723283450226,-37.8190717,0.00020821,3]
[334587791,1723283496249,164.344638,0.00014247,2]
[334587793,1723283826127,728.7117603,0.00014985,2]
[334587796,1723283979902,289.57,0.00010959,2]
[334587797,1723283990588,241.3,0.00010959,2]
[334587798,1723284001070,201.09,0.00010959,2]
[334587799,1723284011384,167.57,0.00010959,2]
[334587800,1723284021918,837.89,0.00010959,2]
[334587803,1723284173988,3603.76011212,0.00013283,2]
[334587804,1723284200630,1239.69729321,0.00013283,2]
[334587805,1723284207706,2269.8181466,0.00013283,2]
[334587806,1723284212736,451.89339907,0.00013283,2]
[334587807,1723284219348,3785.54866294,0.00013283,2]
[334587808,1723284327856,951.94046237,0.00015,2]
[334587810,1723284352277,215.44593649,0.00014999,2]
[334587811,1723284365421,154.8064888,9.999e-05,2]
[334587812,1723284375191,846.11344164,9.999e-05,2]
[334587823,1723284383112,414.16414531,9.999e-05,2]
[334587825,1723284401767,1201.80870259,0.00014999,2]
[334587826,1723284405025,164.819374,0.00014247,2]
[334587828,1723284413528,309.05200817,9.999e-05,2]
[334587829,1723284426271,203.38615614,9.999e-05,2]
[334587830,1723284443692,154.77557542,0.0001212,2]
[334587831,1723284462753,1109.04434069,0.00015,2]
[334587832,1723284468964,274.66750109,9.999e-05,2]
[334587833,1723284473276,496.45,0.00010959,2]
[334587834,1723284481478,314.13592146,0.0001212,2]
[334587835,1723284481519,195.47505022,0.0001212,2]
[334587836,1723284483598,289.57,0.00010959,2]
[334587837,1723284492507,250.38146921,0.0001212,2]
[334587838,1723284492718,1795.90411051,0.0001212,2]
[334587839,1723284502007,1253.46168783,0.0001212,2]
[334587840,1723284502037,130.48283816,0.0001212,2]
[334587842,1723284507138,1163.02940656,0.0001212,2]
[334587843,1723284507185,1785.06005895,0.0001212,2]
[334587844,1723284509467,291.96032288,0.0001212,2]
[334587846,1723284514546,522.71848665,0.0001212,2]
[334587847,1723284514739,868.74,0.00010959,2]
[334587848,1723284525243,579.14,0.00010959,2]
[334587849,1723284535890,9115.9890598,0.0001212,2]
[334587850,1723284552658,1648.73260493,0.00013283,2]
[334587852,1723284581671,6329.35509294,0.00013283,2]
[334587853,1723284581725,172.64088638,0.00013283,2]
[334587854,1723284594989,912.9067075,0.00015,2]
[334587855,1723284607402,844.4,0.00010959,2]
[334587887,1723284632164,-2061.174093,0.0001561,2]
[334587889,1723284632174,-4740.20060356,0.00015612,2]
[334587891,1723284632184,-300.0,0.00015707,2]
[334587893,1723284632194,-7006.89915884,0.00015708,2]
[334587895,1723284632203,-8642.28662244,0.00015708,2]
[334587897,1723284632212,-1611.8412718,0.00015708,2]
[334587899,1723284632222,-2139.49023769,0.00015708,2]
[334587901,1723284632232,-37126.3279835,0.00015709,2]
[334587903,1723284632242,-154.77557542,0.00015712,2]
[334587905,1723284632251,-378.89165146,0.00015744,2]
[334587907,1723284632268,-434.4293937,0.00015744,2]
[334587909,1723284632280,-6261.07494134,0.00015744,2]
[334587912,1723284632293,-736.02,0.00015744,2]
[334587920,1723284638310,-34561.58146773,0.00015744,2]
[334587921,1723284638319,-150.112233,0.000159,2]
[334587922,1723284638328,-500.0,0.0001594,2]
[334587923,1723284638339,-352.65665323,0.0001594,2]
[334587924,1723284638351,-500.0,0.0001594,2]
[334587925,1723284638360,-172.34367574,0.0001594,2]
[334587926,1723284638370,-200.48393973,0.0001594,2]
[334587927,1723284638379,-500.0,0.0001594,2]
[334587928,1723284638388,-500.0,0.0001594,2]
[334587929,1723284638398,-500.0,0.0001594,2]
[334587930,1723284638407,-500.0,0.0001594,2]
[334587931,1723284638417,-500.0,0.0001594,2]
[334587932,1723284638427,-500.0,0.0001594,2]
[334587933,1723284638436,-500.0,0.0001594,2]
[334587934,1723284638446,-207.7516841,0.0001594,2]
[334587935,1723284638455,-500.0,0.0001594,2]
[334587936,1723284638470,-500.0,0.0001594,2]
[334587937,1723284638481,-500.0,0.0001594,2]
[334587938,1723284638490,-500.0,0.0001594,2]
[334587939,1723284638499,-500.0,0.0001594,2]
[334587940,1723284638509,-500.0,0.0001594,2]
[334587941,1723284638518,-490.55180556,0.0001594,2]
[334587942,1723284638527,-500.0,0.0001594,2]
[334587944,1723284638536,-500.0,0.0001594,2]
[334587945,1723284638546,-500.0,0.0001594,2]
[334587946,1723284638555,-278.23875795,0.0001594,2]
[334587947,1723284638564,-500.0,0.0001594,2]
[334587948,1723284638573,-500.0,0.0001594,2]
[334587949,1723284638582,-500.0,0.0001594,2]
[334587950,1723284638591,-500.0,0.0001594,2]
[334587951,1723284638601,-500.0,0.0001594,2]
[334587952,1723284638611,-500.0,0.0001594,2]
[334587953,1723284638620,-500.0,0.0001594,2]
[334587954,1723284638633,-500.0,0.0001594,2]
[334587955,1723284638643,-500.0,0.0001594,2]
[334587956,1723284638652,-500.0,0.0001594,2]
[334587957,1723284638661,-500.0,0.0001594,2]
[334587958,1723284638671,-237.33939407,0.0001594,2]
[334587959,1723284638680,-500.0,0.0001594,2]
[334587960,1723284638689,-500.0,0.0001594,2]
[334587961,1723284638699,-500.0,0.0001594,2]
[334587962,1723284638710,-85295.8661819,0.00015941,2]
[334587963,1723284638724,-246.26039153,0.000161,2]
[334587964,1723284638733,-375.58669811,0.000161,2]
[334587965,1723284638742,-154.77557542,0.000161,2]
[334587966,1723284638752,-155.30339518,0.000161,2]
[334587967,1723284638761,-471.17820835,0.000161,2]
[334587968,1723284638771,-206.20293556,0.0001611,2]
[334587969,1723284638780,-150.112233,0.000163,2]
[334587970,1723284638790,-9649.70159836,0.00016347,2]
[334587971,1723284638799,-2061.17409297,0.00016597,2]
[334587972,1723284638810,-150.112233,0.000168,2]
[334587973,1723284638820,-150.112233,0.000172,2]
[334587974,1723284638830,-420.0,0.00017278,2]
[334587975,1723284638839,-843.47898322,0.00017403,2]
[334587976,1723284638849,-269.80506811,0.00017555,2]
[334587977,1723284638858,-2061.17409297,0.00017584,2]
[334587978,1723284638867,-150.112233,0.000176,2]
[334587979,1723284638877,-1363.95216374,0.00018,2]
[334587980,1723284638887,-150.112233,0.00018,2]
[334587981,1723284638896,-4740.20060354,0.00018094,2]
[334587982,1723284638906,-150.112233,0.000182,2]
[334587983,1723284638917,-150.112233,0.000184,2]
[334587984,1723284638926,-2061.17409297,0.00018571,2]
[334587985,1723284638937,-150.112233,0.000186,2]
[334587986,1723284638947,-150.112233,0.000188,2]
[334587987,1723284638957,-4889.4524834,0.00018806,2]
[334587988,1723284638968,-500.0,0.00018904,2]
[334587989,1723284638978,-4889.4524834,0.00018997,2]
[334587990,1723284638987,-150.112233,0.00019,2]
[334587991,1723284638997,-587.0,0.00019005,2]
[334587992,1723284639006,-161.379709,0.00019178,2]
[334587993,1723284639015,-150.112233,0.000192,2]
[334587994,1723284639025,-4889.4524834,0.00019242,2]
[334587995,1723284639035,-150.0,0.00019337,2]
[334587996,1723284639044,-507.0,0.00019337,2]
[334587997,1723284639054,-200.0,0.0001934,2]
[334587998,1723284639064,-200.0,0.0001934,2]
[334587999,1723284639074,-200.0,0.0001934,2]
[334588000,1723284639083,-4889.4524834,0.00019458,2]
[334588001,1723284639093,-150.112233,0.000195,2]
[334588002,1723284639103,-85295.8661819,0.00019548,2]
[334588003,1723284639112,-330.81018725,0.00019556,2]
[334588004,1723284639122,-279.58859706,0.00019556,2]
[334588005,1723284639131,-500.0,0.00019556,2]
[334588006,1723284639141,-596.49033491,0.00019556,2]
[334588007,1723284639150,-398.37523839,0.00019556,2]
[334588008,1723284639159,-596.49033491,0.00019556,2]
[334588009,1723284639169,-596.49033491,0.00019556,2]
[334588010,1723284639178,-596.49033491,0.00019556,2]
[334588011,1723284639187,-596.49033491,0.00019556,2]
[334588012,1723284639197,-596.49033491,0.00019556,2]
[334588013,1723284639206,-596.49033491,0.00019556,2]
[334588014,1723284639219,-596.49033491,0.00019556,2]
[334588015,1723284639228,-596.49033491,0.00019556,2]
[334588016,1723284639238,-596.49033491,0.00019556,2]
[334588017,1723284639247,-596.49033491,0.00019556,2]
[334588018,1723284639257,-596.49033491,0.00019556,2]